bitfinex-derivatives/quotes_ETHF0:USTF0_20250320
["timestamp","ask_amount","ask_price","bid_price","bid_amount"]
[1742489614003,3.2078,1955.8,1955.7,1.02304]
[1742489614211,4.23078,1955.8,1955.7,4.73204]
[1742489614507,4.23078,1955.8,1955.5,3.94366]
[1742489614508,1.02309,1955.6,1955.5,4.73312]
[1742489614707,1.02309,1955.6,1955.5,3.71]
[1742489614908,4.23089,1955.6,1955.5,3.71]
[1742489615106,1.02309,1955.6,1955.5,4.73314]
[1742489615307,2.30819,1955.6,1955.5,3.71]
[1742489615511,3.51259,1955.6,1955.5,4.73314]
[1742489615905,3.51259,1955.6,1955.5,1.02314]
[1742489616305,2.4895,1955.6,1955.5,1.02314]
[1742489616507,1.2851,1955.6,1955.5,2.39994]
[1742489617314,4.23081,1955.8,1955.7,1.02304]
[1742489617716,4.23081,1955.8,1955.7,4.72404]
[1742489617911,4.23081,1955.8,1955.7,3.701]
[1742489618115,1.02313,1955.6,1955.5,3.7]
[1742489618815,1.02313,1955.6,1955.5,1.02309]
[1742489619117,2.44323,1955.6,1955.5,4.72109]
[1742489619517,1.02324,1955.4,1955.2,47.289]
[1742489619717,2.44334,1955.3,1955.2,47.289]
[1742489619917,3.57254,1955.3,1955.2,50.986]
[1742489620126,3.57254,1955.3,1955.2,3.697]
[1742489620620,3.57254,1955.3,1955.2,4.7203]
[1742489621118,3.57254,1955.3,1955.2,3.697]
[1742489621325,1.02335,1955.1,1955.0,4.71638]
[1742489621929,1.0234,1955.0,1954.9,40.8]
[1742489622120,1.0234,1955.0,1954.9,44.49]
[1742489622622,1.02351,1954.8,1954.7,49.64190167]
[1742489622822,1.02351,1954.8,1954.7,52.00220167]
[1742489623224,3.57889,1954.9,1954.8,1.02351]
[1742489623429,2.21799,1954.9,1954.8,1.02351]
[1742489623731,1.1922,1955.0,1954.9,1.02345]
[1742489624125,3.2078,1955.2,1954.9,1.02345]
[1742489624433,3.2078,1955.2,1955.1,1.02335]
[1742489624633,4.3706,1955.4,1955.3,1.02324]
[1742489625117,1.02324,1955.3,1955.2,1.02327]
[1742489626732,5.39385,1955.4,1955.3,1.02324]
[1742489626933,5.39385,1955.4,1955.3,41.82324]
[1742489627131,5.39385,1955.4,1955.3,40.8]
[1742489627533,6.92861,1955.4,1955.1,1.0233]
[1742489627833,1.02328,1955.3,1955.2,1.02324]
[1742489628633,5.39383,1955.4,1955.3,1.02324]
[1742489630035,2.18603,1955.4,1955.3,1.02324]
[1742489630627,3.2078,1955.6,1955.5,1.02314]
[1742489631121,4.23089,1955.6,1955.5,41.82314]
[1742489631937,3.2078,1955.6,1955.5,41.82314]
[1742489632124,4.23089,1955.6,1955.5,41.82314]
[1742489632434,1.02329,1955.3,1955.2,3.672]
[1742489632635,1.02329,1955.3,1955.2,4.69529]
[1742489633037,1.02333,1955.2,1955.1,1.02331]
[1742489633332,3.2078,1955.2,1954.8,1.1949]
[1742489633535,1.02345,1955.0,1954.9,4.69541]
[1742489634830,1.02345,1955.0,1954.9,1.02341]
[1742489634831,4.23125,1955.0,1954.9,1.02341]
[1742489635038,1.02345,1955.0,1954.9,1.02341]
[1742489635336,2.15708,1955.1,1955.0,1.0234]
[1742489635831,1.0234,1955.0,1954.8,3.666]
[1742489636037,1.1337,1955.1,1954.8,3.666]
[1742489636038,1.02345,1954.9,1954.8,4.68948]
[1742489636334,1.02345,1954.9,1954.8,3.666]
[1742489636536,1.02345,1954.9,1954.8,4.68951]
[1742489637138,1.02345,1954.9,1954.8,45.48951]
[1742489637338,1.02345,1954.9,1954.8,44.466]
[1742489637536,1.02351,1954.8,1954.7,0.00768167]
[1742489637836,4.23131,1954.8,1954.7,1.03124167]
[1742489638028,2.2661,1954.9,1954.8,1.02351]
[1742489638228,1.2426,1954.9,1954.8,1.02351]
[1742489638531,3.2078,1955.0,1954.9,1.02345]
[1742489638727,4.2312,1955.0,1954.9,4.68245]
[1742489639132,5.6521,1955.0,1954.9,45.48245]
[1742489639536,4.6287,1955.0,1954.9,45.48245]
[1742489640234,1.02336,1955.1,1955.0,1.0234]
[1742489640540,1.4209,1955.1,1955.0,2.3588]
[1742489640839,2.25153,1955.4,1955.3,1.02324]
[1742489641035,1.02326,1955.3,1955.2,1.02325]
[1742489641235,1.02326,1955.3,1955.2,45.47825]
[1742489641932,2.25152,1955.4,1955.3,1.02324]
[1742489642126,3.63692,1955.4,1955.3,1.02324]
[1742489642328,1.3854,1955.4,1955.3,2.34614]
[1742489643241,2.18292,1955.8,1955.7,1.02304]
[1742489643734,1.02284,1956.1,1955.8,2.55747]
[1742489643928,3.2078,1956.2,1955.8,3.655]
[1742489644130,1.02288,1956.1,1956.0,1.02286]
[1742489644539,1.3854,1956.1,1956.0,1.02286]
[1742489644840,2.40823,1956.1,1956.0,1.02286]
[1742489645038,1.02288,1956.0,1955.8,4.98558167]
[1742489645244,1.3544,1955.9,1955.8,6.00856167]
[1742489646432,3.2078,1956.2,1956.1,1.02283]
[1742489646734,1.02277,1956.2,1956.1,1.02283]
[1742489647140,4.93762,1956.3,1955.8,3.66268167]
[1742489647335,1.02286,1956.1,1956.0,1.02286]
[1742489647836,2.37726,1956.1,1956.0,1.02286]
[1742489648037,1.3544,1956.1,1956.0,1.02288]
[1742489648542,2.37723,1956.1,1956.0,1.02288]
[1742489648741,1.3544,1956.1,1956.0,1.02288]
[1742489648937,2.37723,1956.1,1956.0,1.02288]
[1742489649141,1.3544,1956.1,1956.0,1.02288]
[1742489649834,2.3808,1956.3,1956.2,1.02277]
[1742489650039,3.40352,1956.3,1956.2,1.02277]
[1742489650637,1.02277,1956.2,1956.1,3.633]
[1742489651234,2.33577,1956.2,1956.1,3.633]
[1742489651636,1.02288,1956.0,1955.9,6.0025]
[1742489651841,1.02293,1955.9,1955.8,0.00768167]
[1742489652043,1.02293,1955.9,1955.8,3.63468167]
[1742489652241,1.02293,1955.9,1955.8,0.00768167]
[1742489652938,3.58423,1955.9,1955.8,0.00768167]
[1742489655845,2.33593,1955.9,1955.8,0.00768167]
[1742489656445,5.7646,1956.4,1956.0,1.02282]
[1742489656646,2.404,1956.2,1956.1,1.02283]
[1742489656850,1.2415,1956.2,1956.1,4.65083]
[1742489657037,1.3212,1956.3,1956.1,3.628]
[1742489657242,1.3212,1956.3,1956.2,1.02277]
[1742489657544,2.34392,1956.3,1956.2,2.35907]
[1742489657741,1.3212,1956.3,1956.2,2.35907]
[1742489657941,2.34392,1956.3,1956.2,2.35907]
[1742489658138,1.3212,1956.3,1956.2,2.35907]
[1742489659344,1.2415,1956.6,1956.5,1.02262]
[1742489659548,2.26406,1956.6,1956.5,1.02262]
[1742489660145,1.2415,1956.6,1956.5,1.02262]
[1742489660343,1.02256,1956.7,1956.6,1.02256]
[1742489660851,1.02262,1956.6,1956.5,1.02259]
[1742489661352,1.0226,1956.6,1956.5,1.02256]
[1742489661549,2.41004,1956.7,1956.6,1.02256]
[1742489661947,5.1113,1957.2,1956.6,1.02256]
[1742489661948,3.2078,1957.3,1957.0,2.5559]
[1742489662253,3.2078,1957.1,1956.7,5.03588]
[1742489662456,1.3875,1957.0,1956.9,1.02241]
[1742489662847,1.02241,1956.9,1956.8,45.50543]
[1742489663050,1.3875,1957.0,1956.9,1.02241]
[1742489663338,2.40986,1957.0,1956.9,3.68]
[1742489663546,1.3875,1957.0,1956.9,4.70241]
[1742489664146,1.3875,1957.0,1956.9,6.12371]
[1742489664548,1.2292,1957.2,1957.1,1.0223]
[1742489665349,2.6521,1957.2,1957.1,1.0223]
[1742489665953,1.4229,1957.2,1957.1,1.0223]
[1742489666150,1.4229,1957.2,1957.1,4.2301]
[1742489666858,1.02217,1957.4,1957.3,1.02217]
[1742489667050,1.02217,1957.4,1957.3,4.70417]
[1742489667250,1.02217,1957.4,1957.3,3.682]
[1742489667656,4.22997,1957.4,1957.3,3.682]
[1742489668049,1.02217,1957.4,1957.3,4.7042]
[1742489668250,2.33127,1957.4,1957.3,3.682]
[1742489670053,1.02215,1957.4,1957.3,3.682]
[1742489671052,1.2292,1957.5,1957.3,4.70419]
[1742489671252,1.02215,1957.4,1957.3,3.682]
[1742489672154,1.0222,1957.3,1957.2,5.98123]
[1742489672658,1.0222,1957.3,1957.2,5.97922]
[1742489672957,3.2078,1957.3,1956.9,4.3368]
[1742489673155,1.0223,1957.1,1957.0,5.0108]
[1742489673357,1.0223,1957.1,1957.0,3.661]
[1742489673860,2.4223,1957.1,1957.0,3.661]
[1742489674464,2.4223,1957.1,1957.0,4.68336]
[1742489674758,2.4223,1957.1,1957.0,5.0108]
[1742489675060,2.4223,1957.1,1957.0,6.03316]
[1742489675359,1.02241,1956.9,1956.8,40.8]
[1742489675555,1.02246,1956.8,1956.7,0.00768167]
[1742489675752,3.55276,1956.8,1956.7,0.00768167]
[1742489676148,3.55276,1956.8,1956.7,40.80768167]
[1742489678556,2.5303,1956.8,1956.7,40.80768167]
[1742489678752,1.02242,1956.9,1956.8,1.02241]
[1742489678949,2.41192,1956.9,1956.8,1.02241]
[1742489679655,2.41192,1956.9,1956.7,42.09328167]
[1742489679656,1.02246,1956.8,1956.7,42.09328167]
[1742489679860,2.41196,1956.8,1956.7,42.09328167]
[1742489680561,2.41196,1956.8,1956.7,40.80768167]
[1742489681364,2.41196,1956.8,1956.7,43.11579167]
[1742489682164,1.3895,1956.8,1956.7,43.11579167]
[1742489682357,1.02245,1956.9,1956.8,1.02246]
[1742489682663,2.42625,1956.9,1956.8,1.02246]
[1742489682859,1.2379,1957.0,1956.9,1.02241]
[1742489683056,3.2078,1957.2,1957.1,1.0223]
[1742489683057,1.02228,1957.2,1957.1,1.0223]
[1742489683252,2.42608,1957.2,1957.1,1.0223]
[1742489683464,5.76319,1957.4,1957.0,1.4026]
[1742489683465,1.02223,1957.3,1957.2,1.02221]
[1742489683859,1.02223,1957.3,1957.2,4.65521]
[1742489684062,1.4038,1957.3,1957.2,4.65521]
[1742489684359,1.02208,1957.6,1957.5,1.02206]
[1742489684559,2.42588,1957.6,1957.5,1.02206]
[1742489685560,1.02213,1957.5,1957.4,1.02211]
[1742489685766,2.37823,1957.5,1957.4,2.34031]
[1742489686062,1.0222,1957.3,1957.0,3.2078]
[1742489686267,2.55524,1957.5,1957.0,4.9672]
[1742489686268,2.5455,1957.4,1957.0,4.9672]
[1742489686459,2.37836,1957.2,1957.1,1.0223]
[1742489686854,1.3561,1957.2,1957.0,4.9672]
[1742489687069,2.37837,1957.2,1957.1,1.0223]
[1742489687263,1.3561,1957.2,1957.1,1.0223]
[1742489687768,1.02224,1957.3,1957.2,1.02221]
[1742489687964,1.02213,1957.5,1957.4,1.02209]
[1742489688160,1.02215,1957.4,1957.3,4.66415]
[1742489688365,1.02213,1957.5,1957.4,1.0221]
[1742489688565,1.02213,1957.5,1957.4,2.3863]
[1742489688770,2.23499,1957.6,1957.5,1.02209]
[1742489688963,2.23499,1957.6,1957.5,2.38629]
[1742489689471,1.2129,1957.6,1957.5,2.38629]
[1742489689664,1.02204,1957.6,1957.5,2.38629]
[1742489690465,1.1275,1957.7,1957.6,1.02204]
[1742489690466,2.14952,1957.7,1957.6,1.02204]
[1742489690966,1.1275,1957.7,1957.6,1.02204]
[1742489691262,3.2078,1957.9,1957.6,3.642]
[1742489691470,1.02186,1958.0,1957.9,1.02185]
[1742489691665,1.02189,1957.9,1957.8,1.02192]
[1742489691866,1.02194,1957.8,1957.7,1.4162]
[1742489692068,1.02199,1957.7,1957.6,3.642]
[1742489692367,1.02199,1957.7,1957.6,4.67169205]
[1742489692770,1.02199,1957.7,1957.6,0.00766205]
[1742489693071,4.22979,1957.7,1957.6,0.00766205]
[1742489693266,1.02199,1957.7,1957.6,0.00766205]
[1742489693669,1.02198,1957.8,1957.7,1.02196]
[1742489693869,1.02192,1957.9,1957.8,1.02189]
[1742489694274,1.02194,1957.8,1957.7,2.35425]
[1742489694871,1.02193,1957.9,1957.8,1.02191]
[1742489695468,1.02194,1957.8,1957.7,2.35426]
[1742489696066,1.02194,1957.8,1957.7,1.3323]
[1742489696267,1.02194,1957.8,1957.7,2.35429]
[1742489696572,1.02194,1957.8,1957.7,1.3323]
[1742489696772,4.22974,1957.8,1957.7,1.3323]
[1742489697374,1.02199,1957.7,1957.6,0.00766205]
[1742489697671,1.02199,1957.7,1957.6,3.64666205]
[1742489698871,1.02199,1957.7,1957.6,0.00766205]
[1742489699080,2.37899,1957.7,1957.6,0.00766205]
[1742489700075,1.02225,1957.2,1957.1,2.23626]
[1742489700278,1.02225,1957.2,1957.1,5.86826]
[1742489700969,1.0222,1957.4,1957.3,1.02217]
[1742489701277,0.00759665,1957.3,1957.2,1.02225]
[1742489702566,3.2078,1958.4,1957.2,3.8871]
[1742489702765,3.2078,1958.2,1957.5,3.2078]
[1742489702970,1.2887,1958.1,1957.8,1.02191]
[1742489703174,1.02187,1958.0,1957.9,46.76499]
[1742489703675,1.02183,1958.0,1957.9,42.0861]
[1742489703866,2.31053,1958.0,1957.9,45.7411]
[1742489704068,5.51833,1958.0,1957.9,44.455]
[1742489704265,5.51833,1958.0,1957.9,40.8]
[1742489704479,1.02189,1957.9,1957.8,0.00766205]
[1742489704670,5.00032,1957.9,1957.4,1.02213]
[1742489704871,3.2078,1957.8,1957.6,1.02199]
[1742489705075,2.4456,1957.9,1957.6,1.02201]
[1742489705076,1.2887,1957.7,1957.6,1.02201]
[1742489705375,3.2078,1958.0,1957.5,9.42601]
[1742489705577,5.51835,1958.0,1957.8,1.02189]
[1742489705775,0.00766205,1957.9,1957.8,4.68489]
[1742489706076,1.02955205,1957.9,1957.8,4.68489]
[1742489706273,1.37356205,1957.9,1957.8,3.663]
[1742489706471,2.39545205,1957.9,1957.8,3.663]
[1742489707176,1.02199,1957.7,1957.6,1.02970205]
[1742489707478,1.02197,1957.8,1957.7,1.02199]
[1742489707673,1.02197,1957.8,1957.6,1.02966205]
[1742489707876,1.37356205,1957.9,1957.6,0.00766205]
[1742489708075,1.37356205,1957.9,1957.8,1.02194]
[1742489708778,2.39545205,1957.9,1957.8,1.02194]
[1742489708979,1.02196,1957.8,1957.7,1.02197]
[1742489709281,1.02199,1957.7,1957.6,1.02967205]
[1742489709581,1.3904,1957.8,1957.7,1.02199]
[1742489709876,0.00766205,1957.9,1957.8,1.02194]
[1742489710079,0.00766205,1957.9,1957.8,4.68394]
[1742489710583,1.02955205,1957.9,1957.8,3.662]
[1742489710771,2.41995205,1957.9,1957.8,3.662]
[1742489710973,1.02199,1957.7,1957.6,3.67066205]
[1742489711575,1.39806205,1957.9,1957.8,1.02194]
[1742489711780,1.39806205,1957.9,1957.7,1.02196]
[1742489712081,2.41997205,1957.9,1957.8,1.02194]
[1742489712778,1.02195,1957.8,1957.7,1.02195]
[1742489712980,2.41778,1957.8,1957.7,1.02199]
[1742489713683,1.02199,1957.7,1957.6,4.69266205]
[1742489713883,2.41776,1957.8,1957.7,1.02199]
[1742489714079,2.41776,1957.8,1957.6,3.67066205]
[1742489714080,1.02199,1957.7,1957.6,3.67066205]
[1742489714277,2.41779,1957.7,1957.6,4.69270205]
[1742489714676,1.3958,1957.7,1957.6,4.69270205]
[1742489714877,4.23738205,1957.9,1957.8,1.02194]
[1742489715075,0.00766205,1957.9,1957.6,6.22574205]
[1742489715276,0.00766205,1957.9,1957.8,1.02194]
[1742489715886,0.00766205,1957.9,1957.8,2.19264]
[1742489716688,1.02955205,1957.9,1957.8,1.1707]
[1742489716981,1.02195,1957.8,1957.7,1.02196]
[1742489717181,1.3387,1957.8,1957.7,4.67996]
[1742489717376,1.3387,1957.8,1957.7,7.88776]
[1742489717577,1.02958205,1957.9,1957.8,1.02194]
[1742489718379,0.00766205,1957.9,1957.8,1.02194]
[1742489718772,1.02955205,1957.9,1957.8,1.02194]
[1742489719182,0.00766205,1957.9,1957.8,2.42774]
[1742489719585,0.00766205,1957.9,1957.8,3.61854]
[1742489720986,1.02172,1958.3,1958.2,1.02169]
[1742489721189,2.42712,1958.3,1958.2,1.02169]
[1742489721587,2.42712,1958.3,1958.2,2.40879]
[1742489722179,2.42712,1958.3,1958.2,1.3871]
[1742489722381,2.42712,1958.3,1958.2,2.40883]
[1742489722690,1.02173,1958.2,1958.1,3.657]
[1742489722883,5.55123,1958.2,1958.1,3.657]
[1742489723082,2.34343,1958.2,1958.1,3.657]
[1742489723887,1.3217,1958.2,1958.1,6.06588]
[1742489724295,1.02169,1958.3,1958.2,1.02168]
[1742489724491,1.4125,1958.3,1958.2,2.35828]
[1742489724989,1.02156,1958.6,1958.5,1.02153]
[1742489725287,1.02152,1958.7,1958.6,1.02148]
[1742489725493,2.17112,1958.7,1958.6,1.02148]
[1742489726193,1.02152,1958.6,1958.5,44.471]
[1742489726395,1.02152,1958.6,1958.5,45.49257]
[1742489726689,2.43402,1958.6,1958.5,3.671]
[1742489726880,2.43402,1958.6,1958.5,4.69257]
[1742489727592,1.02162,1958.4,1958.3,51.90562]
[1742489727787,1.02162,1958.4,1958.3,50.884]
[1742489727981,1.02171,1958.3,1958.1,5.0124]
[1742489728185,3.63681,1958.3,1958.2,1.02168]
[1742489728595,3.63681,1958.3,1958.2,2.36908]
[1742489729089,5.76122,1958.9,1958.3,2.55419]
[1742489729288,1.4083,1958.7,1958.4,7.56638]
[1742489729485,1.02157,1958.6,1958.5,1.02153]
[1742489730286,1.02157,1958.5,1958.4,3.665]
[1742489730487,1.02175,1958.3,1958.2,1.0217]
[1742489730692,1.02175,1958.3,1958.2,4.6857]
[1742489730894,1.3762,1958.3,1958.2,4.6857]
[1742489731194,2.39788,1958.3,1958.2,4.6857]
[1742489732094,2.39788,1958.3,1958.2,4.68573]
[1742489734299,1.3762,1958.3,1958.2,4.68573]
[1742489734492,2.16976,1958.4,1958.3,1.02168]
[1742489734694,2.16976,1958.4,1958.3,2.44488]
[1742489735395,1.1481,1958.4,1958.3,2.44488]
[1742489735695,1.02161,1958.5,1958.4,1.02157]
[1742489735893,1.359,1958.5,1958.4,2.44477]
[1742489736093,3.91296,1958.5,1958.2,3.664]
[1742489736401,1.02168,1958.3,1958.2,3.664]
[1742489736601,1.02168,1958.3,1958.2,4.68573]
[1742489736897,3.62818,1958.3,1958.2,3.664]
[1742489738897,1.02178,1958.1,1958.0,44.438]
[1742489739307,1.02189,1957.9,1957.8,51.87291]
[1742489739493,2.39715,1958.0,1957.9,1.02189]
[1742489739694,1.3753,1958.0,1957.9,43.19469]
[1742489740695,1.3753,1958.0,1957.9,46.40249]
[1742489741097,2.24805,1958.2,1958.1,1.02178]
[1742489741294,3.60715,1958.2,1958.1,1.02178]
[1742489741498,2.5854,1958.2,1958.1,1.02178]
[1742489742403,1.3591,1958.3,1958.2,1.02173]
[1742489742603,2.38078,1958.3,1958.2,2.39453]
[1742489742802,1.3591,1958.3,1958.2,2.39453]
[1742489743005,1.3591,1958.3,1958.2,43.19453]
[1742489743506,2.38078,1958.3,1958.2,43.19453]
[1742489743807,2.38078,1958.3,1958.2,40.8]
[1742489744308,2.38078,1958.3,1958.2,41.82173]
[1742489744606,1.2263,1958.5,1958.2,40.8]
[1742489744811,1.2263,1958.5,1958.4,1.02162]
[1742489745006,2.5154,1958.5,1958.4,4.65362]
[1742489745506,1.2263,1958.5,1958.4,4.65362]
[1742489745805,1.2263,1958.5,1958.4,6.07232]
[1742489746006,1.2263,1958.5,1958.4,46.87232]
[1742489747210,1.4227,1958.7,1958.6,1.02152]
[1742489747810,2.44417,1958.7,1958.6,1.02152]
[1742489748404,1.02157,1958.5,1958.4,6.07228]
[1742489748608,1.02156,1958.6,1958.5,1.02154]
[1742489748807,1.02157,1958.5,1958.4,6.07228]
[1742489749007,2.41397,1958.5,1958.4,6.07228]
[1742489749508,2.41397,1958.5,1958.4,1.02158]
[1742489749715,1.02162,1958.4,1958.3,4.65265]
[1742489750009,2.4766,1958.4,1958.3,4.65265]
[1742489750510,2.4766,1958.4,1958.3,1.02165]
[1742489750712,2.4766,1958.4,1958.3,4.64765]
[1742489751107,3.49822,1958.4,1958.3,3.626]
[1742489751311,2.5542,1958.3,1957.9,4.22964]
[1742489751613,1.02187,1958.0,1957.9,1.02184]
[1742489752005,1.02189,1957.9,1957.8,47.213]
[1742489752200,1.02199,1957.7,1957.6,0.00766205]
[1742489752411,1.02199,1957.7,1957.6,1.02970205]
[1742489752706,4.22979,1957.7,1957.6,0.00766205]
[1742489753104,4.22979,1957.7,1957.3,15.58684369]
[1742489753105,1.02215,1957.4,1957.3,15.58684369]
[1742489753299,1.02215,1957.4,1957.3,16.60902369]
[1742489753507,1.02215,1957.4,1957.3,12.98402369]
[1742489753905,2.42115,1957.4,1957.3,11.96184369]
[1742489754813,2.42115,1957.4,1957.3,10.15714369]
[1742489755017,6.04415,1957.4,1957.3,3.56592908]
[1742489755217,1.0222,1957.3,1957.2,0.00766205]
[1742489755403,5.6137,1957.3,1957.2,0.00766205]
[1742489756213,7.0915,1957.3,1956.7,1.3943]
[1742489756514,1.02251,1956.7,1956.6,47.213]
[1742489756711,1.02248,1956.8,1956.6,47.213]
[1742489756911,1.02248,1956.8,1956.7,40.8]
[1742489758510,1.3119,1956.9,1956.7,40.8]
[1742489758711,4.3804,1957.0,1956.7,40.8]
[1742489758712,3.2078,1957.0,1956.8,3.616]
[1742489758910,4.23016,1957.0,1956.9,1.327]
[1742489759111,4.23016,1957.0,1956.9,2.5115]
[1742489759317,1.3119,1957.2,1956.9,2.5115]
[1742489759318,1.02234,1957.1,1956.9,2.5115]
[1742489759513,4.5197,1957.2,1957.0,40.8]
[1742489759719,1.0223,1957.1,1957.0,41.9249]
[1742489759918,2.3342,1957.1,1957.0,41.9249]
[1742489760116,4.351,1957.4,1957.2,1.02222]
[1742489760314,1.02223,1957.3,1957.1,1.02226]
[1742489760513,1.02225,1957.2,1957.0,41.9249]
[1742489760819,2.33413,1957.3,1957.0,45.1327]
[1742489761015,1.02225,1957.2,1957.1,4.63326]
[1742489761214,2.33413,1957.3,1957.2,1.02225]
[1742489761412,1.02218,1957.4,1957.3,1.0222]
[1742489761608,0.00766205,1957.5,1957.2,1.02225]
[1742489761823,1.0222,1957.3,1957.2,1.02225]
[1742489762119,1.02219,1957.4,1957.2,1.02225]
[1742489762320,2.32239205,1957.5,1957.3,1.02215]
[1742489762523,1.30026205,1957.5,1957.2,1.02221]
[1742489762824,1.02225,1957.2,1957.1,3.611]
[1742489763621,1.02236,1957.0,1956.9,4.7955]
[1742489763821,1.02236,1957.0,1956.9,1.1845]
[1742489764016,1.02246,1956.8,1956.7,1.1724]
[1742489764327,1.02251,1956.7,1956.6,50.83166205]
[1742489764517,2.31591,1956.7,1956.6,50.83166205]
[1742489765514,2.31591,1956.7,1956.6,51.85422205]
[1742489766021,2.31591,1956.7,1956.6,50.83166205]
[1742489766620,5.52371,1956.7,1956.6,47.22066205]
[1742489766810,5.52371,1956.7,1956.6,0.00766205]
[1742489767719,1.02277,1956.2,1956.1,48.3932]
[1742489767920,1.02277,1956.2,1955.9,1.1806]
[1742489767921,1.02288,1956.0,1955.9,1.1806]
[1742489768716,1.02298,1955.8,1955.7,3.2078]
[1742489768913,3.2078,1956.1,1955.8,0.00766205]
[1742489769116,0.00766205,1956.1,1956.0,1.02288]
[1742489769817,0.00766205,1956.1,1956.0,4.62588]
[1742489770014,2.36455,1956.5,1956.4,1.02267]
[1742489770216,1.02258,1956.6,1956.5,1.02262]
[1742489770411,1.02258,1956.6,1956.5,41.82258]
[1742489770412,1.02256,1956.6,1956.5,41.82258]
[1742489770614,2.36445,1956.7,1956.5,41.82258]
[1742489770817,1.02256,1956.6,1956.5,40.8]
[1742489771023,3.2078,1956.9,1956.5,40.8]
[1742489771320,0.00766205,1956.7,1956.6,4.62956]
[1742489771520,0.00766205,1956.7,1956.6,5.71746]
[1742489771721,1.03017205,1956.7,1956.6,4.6949]
[1742489771923,1.02256,1956.6,1956.5,40.8]
[1742489772412,1.02262,1956.5,1956.4,3.615]
[1742489774920,2.41892,1956.5,1956.4,3.615]
[1742489776524,1.02267,1956.4,1956.3,1.196]
[1742489776724,2.41577,1956.4,1956.3,1.196]
[1742489776927,1.02267,1956.4,1956.3,2.21872]
[1742489777112,4.23041,1956.6,1956.4,1.02267]
[1742489777311,1.02266,1956.5,1956.3,1.196]
[1742489777524,2.41576,1956.5,1956.3,1.196]
[1742489777726,2.41576,1956.5,1956.4,1.02267]
[1742489778619,1.3931,1956.5,1956.4,1.02267]
[1742489778825,1.0226,1956.6,1956.5,1.02262]
[1742489779028,1.02267,1956.4,1956.3,2.21869]
[1742489779329,1.02265,1956.5,1956.4,1.02266]
[1742489779814,1.02264,1956.5,1956.4,1.02264]
[1742489780022,2.39399,1956.6,1956.5,1.02262]
[1742489780722,1.02262,1956.5,1956.4,2.42293]
[1742489781025,1.3714,1956.6,1956.5,1.02262]
[1742489781026,2.394,1956.6,1956.5,1.02262]
[1742489781222,2.394,1956.6,1956.5,2.42292]
[1742489781530,2.394,1956.6,1956.5,1.4003]
[1742489782220,1.02267,1956.4,1956.3,2.21869]
[1742489782421,1.02267,1956.4,1956.3,2.5807]
[1742489782728,1.02267,1956.4,1956.3,6.1747]
[1742489782926,1.02267,1956.4,1956.3,7.19742]
[1742489783226,1.02267,1956.4,1956.3,6.1747]
[1742489784030,1.02267,1956.4,1956.3,7.19742]
[1742489784732,4.23044,1956.5,1956.4,1.02267]
[1742489784929,4.23044,1956.5,1956.4,1.3847]
[1742489785831,4.23044,1956.5,1956.4,2.40737]
[1742489786031,4.23044,1956.5,1956.4,1.3847]
[1742489786236,1.02267,1956.4,1956.3,6.1893]
[1742489786526,1.02272,1956.3,1956.2,1.0879]
[1742489786724,4.23052,1956.3,1956.2,1.0879]
[1742489786919,1.02283,1956.1,1956.0,40.8]
[1742489787233,1.02293,1955.9,1955.8,1.09606205]
[1742489787529,4.23073,1955.9,1955.8,1.09606205]
[1742489788527,4.23073,1955.9,1955.8,1.03064205]
[1742489788730,4.23073,1955.9,1955.8,2.11904205]
[1742489788731,1.02293,1955.9,1955.8,2.11904205]
[1742489789828,4.23073,1955.9,1955.8,1.09606205]
[1742489790331,4.23073,1955.9,1955.8,0.00766205]
[1742489790526,3.2078,1955.9,1955.8,1.03064205]
[1742489791230,4.23073,1955.9,1955.8,1.03064205]
[1742489791937,4.23073,1955.9,1955.8,0.00766205]
[1742489793536,4.23073,1955.9,1955.8,1.03064205]
[1742489793725,4.23073,1955.9,1955.8,0.00766205]
[1742489794125,6.41153,1955.9,1955.8,0.00766205]
[1742489794332,4.23073,1955.9,1955.8,0.00766205]
[1742489794533,4.23073,1955.9,1955.8,1.03064205]
[1742489795128,3.2078,1955.9,1955.8,2.19874205]
[1742489795422,3.2078,1955.9,1955.8,5.77174205]
[1742489795627,1.3748,1956.0,1955.9,1.02293]
[1742489795823,1.3748,1956.0,1955.9,2.39593]
[1742489796023,5.4317,1956.5,1956.3,1.02269]
[1742489796224,5.4317,1956.5,1956.4,1.02267]
[1742489796225,4.23043,1956.5,1956.4,1.02267]
[1742489796436,1.0227,1956.4,1956.3,1.02269]
[1742489796633,3.21546205,1956.7,1956.3,1.1786]
[1742489796837,1.02261,1956.6,1956.5,1.0226]
[1742489797037,2.35991,1956.6,1956.5,1.373]
[1742489797930,1.3373,1956.6,1956.5,2.39562]
[1742489798332,1.3373,1956.6,1956.5,5.96662]
[1742489798539,2.35986,1956.6,1956.5,5.96662]
[1742489798737,1.3373,1956.6,1956.5,5.96662]
[1742489799240,0.00766205,1956.7,1956.6,1.02256]
[1742489799535,3.2078,1957.2,1957.1,1.0223]
[1742489799733,1.02223,1957.3,1957.2,1.02223]
[1742489800330,4.322,1957.4,1957.1,3.571]
[1742489800331,1.02225,1957.2,1957.1,3.571]
[1742489800724,1.0223,1957.1,1957.0,0.00766205]
[1742489801330,2.3185,1957.1,1957.0,0.00766205]
[1742489803335,1.02246,1956.8,1956.7,47.262]
[1742489803543,1.02256,1956.6,1956.5,5.92622]